[Event "Late-Titled-Tuesday-Blitz-March-19-2024"]
[Site "Chess.com"]
[Date "2024.03.19"]
[Round "9"]
[White "Redzishchess"]
[Black "Charodej1"]
[Result "1/2-1/2"]
[WhiteElo "2490"]
[BlackElo "2382"]
[TimeControl "180+1"]
[EndTime "15:44:08 PDT"]
[Termination "Game drawn - insufficient material"]

1. d4 {[%clk 0:02:36.5]} 1... Nf6 {[%clk 0:02:59.7]} 2. c4 {[%clk 0:02:34.4]}
2... e6 {[%clk 0:03:00]} 3. Nc3 {[%clk 0:02:35]} 3... Bb4 {[%clk 0:02:58.8]} 4.
e3 {[%clk 0:02:35.6]} 4... O-O {[%clk 0:02:58.8]} 5. Ne2 {[%clk 0:02:36.2]} 5...
d5 {[%clk 0:02:59.2]} 6. a3 {[%clk 0:02:34.7]} 6... Be7 {[%clk 0:02:57.3]} 7.
cxd5 {[%clk 0:02:34.8]} 7... exd5 {[%clk 0:02:57.2]} 8. Nf4 {[%clk 0:02:35.5]}
8... c6 {[%clk 0:02:57.3]} 9. Bd3 {[%clk 0:02:35.8]} 9... Nbd7 {[%clk
0:02:57.1]} 10. O-O {[%clk 0:02:36.2]} 10... a5 {[%clk 0:02:56.4]} 11. f3 {[%clk
0:02:36.5]} 11... c5 {[%clk 0:02:51.7]} 12. Qc2 {[%clk 0:02:21.4]} 12... Re8
{[%clk 0:02:39.2]} 13. Ncxd5 {[%clk 0:02:16.4]} 13... Bf8 {[%clk 0:02:21.7]} 14.
e4 {[%clk 0:01:34.3]} 14... cxd4 {[%clk 0:01:48.5]} 15. Nc7 {[%clk 0:01:29.4]}
15... Rb8 {[%clk 0:01:42.5]} 16. Nxe8 {[%clk 0:01:28.6]} 16... Qxe8 {[%clk
0:01:42.9]} 17. Bd2 {[%clk 0:01:20.7]} 17... Qe5 {[%clk 0:01:31.6]} 18. Rac1
{[%clk 0:01:04.3]} 18... Bd6 {[%clk 0:01:21.7]} 19. g3 {[%clk 0:00:57]} 19... b6
{[%clk 0:01:08.3]} 20. Ne2 {[%clk 0:00:50.3]} 20... Qh5 {[%clk 0:00:38.3]} 21.
Bf4 {[%clk 0:00:47.9]} 21... Ne5 {[%clk 0:00:28.2]} 22. g4 {[%clk 0:00:13.7]}
22... Nfxg4 {[%clk 0:00:08.3]} 23. fxg4 {[%clk 0:00:10.6]} 23... Qxg4+ {[%clk
0:00:07.7]} 24. Ng3 {[%clk 0:00:10.4]} 24... Be6 {[%clk 0:00:07.6]} 25. Bxe5
{[%clk 0:00:09.7]} 25... Bxe5 {[%clk 0:00:07.9]} 26. Qe2 {[%clk 0:00:09]} 26...
Qg5 {[%clk 0:00:08]} 27. Qf3 {[%clk 0:00:06.6]} 27... g6 {[%clk 0:00:07.3]} 28.
Rf2 {[%clk 0:00:05.4]} 28... h5 {[%clk 0:00:07.5]} 29. Rfc2 {[%clk 0:00:04.8]}
29... h4 {[%clk 0:00:07.1]} 30. Kf2 {[%clk 0:00:05.4]} 30... hxg3+ {[%clk
0:00:07]} 31. hxg3 {[%clk 0:00:06.3]} 31... Qe3+ {[%clk 0:00:07.4]} 32. Qxe3
{[%clk 0:00:06.5]} 32... dxe3+ {[%clk 0:00:08.3]} 33. Kxe3 {[%clk 0:00:07.3]}
33... Bxg3 {[%clk 0:00:08.8]} 34. Kd4 {[%clk 0:00:07.5]} 34... Rd8+ {[%clk
0:00:08.2]} 35. Ke3 {[%clk 0:00:07.6]} 35... Be5 {[%clk 0:00:08]} 36. b4 {[%clk
0:00:07.3]} 36... axb4 {[%clk 0:00:07.6]} 37. axb4 {[%clk 0:00:08.2]} 37... g5
{[%clk 0:00:07.8]} 38. Be2 {[%clk 0:00:07.9]} 38... Bf4+ {[%clk 0:00:08.1]} 39.
Kf3 {[%clk 0:00:08.4]} 39... Bxc1 {[%clk 0:00:09]} 40. Rxc1 {[%clk 0:00:09.1]}
40... Rd4 {[%clk 0:00:09.1]} 41. b5 {[%clk 0:00:09]} 41... Rd6 {[%clk
0:00:06.7]} 42. Rc6 {[%clk 0:00:08.5]} 42... Rxc6 {[%clk 0:00:06.3]} 43. bxc6
{[%clk 0:00:09.4]} 43... Kf8 {[%clk 0:00:06.8]} 44. Ba6 {[%clk 0:00:09.6]} 44...
Ke7 {[%clk 0:00:06.7]} 45. c7 {[%clk 0:00:10.2]} 45... Kd6 {[%clk 0:00:03.4]}
46. c8=Q {[%clk 0:00:09.9]} 46... Bxc8 {[%clk 0:00:03.9]} 47. Bxc8 {[%clk
0:00:10.8]} 47... Ke5 {[%clk 0:00:04.2]} 48. Bf5 {[%clk 0:00:07.7]} 48... f6
{[%clk 0:00:04.4]} 49. Ke3 {[%clk 0:00:07.2]} 49... b5 {[%clk 0:00:04.3]} 50.
Bd7 {[%clk 0:00:06]} 50... b4 {[%clk 0:00:02.4]} 51. Ba4 {[%clk 0:00:06.5]}
51... f5 {[%clk 0:00:01.3]} 52. exf5 {[%clk 0:00:05.9]} 52... Kxf5 {[%clk
0:00:02.2]} 53. Bc2+ {[%clk 0:00:06.5]} 53... Ke5 {[%clk 0:00:02.7]} 54. Bb1
{[%clk 0:00:07]} 54... g4 {[%clk 0:00:03.6]} 55. Kf2 {[%clk 0:00:07.3]} 55...
g3+ {[%clk 0:00:04.5]} 56. Kg2 {[%clk 0:00:07.8]} 56... Kd6 {[%clk 0:00:05.4]}
57. Kxg3 {[%clk 0:00:08.3]} 57... Kc5 {[%clk 0:00:06.3]} 58. Kf3 {[%clk
0:00:09.2]} 58... Kb6 {[%clk 0:00:07.2]} 59. Ke3 {[%clk 0:00:10]} 59... Kc5
{[%clk 0:00:08.1]} 60. Kd3 {[%clk 0:00:10.1]} 60... Kb6 {[%clk 0:00:09]} 61. Kc4
{[%clk 0:00:11]} 61... Kc7 {[%clk 0:00:09.9]} 62. Kxb4 {[%clk 0:00:11.6]}
1/2-1/2

[Event "Late-Titled-Tuesday-Blitz-March-19-2024"]
[Site "Chess.com"]
[Date "2024.03.19"]
[Round "9"]
[White "SoltaniciR"]
[Black "alexrustemov"]
[Result "1/2-1/2"]
[WhiteElo "2662"]
[BlackElo "2851"]
[TimeControl "180+1"]
[EndTime "15:44:11 PDT"]
[Termination "Game drawn by repetition"]

1. e4 {[%clk 0:02:55.2]} 1... e6 {[%clk 0:02:59.9]} 2. d4 {[%clk 0:02:54.5]}
2... d5 {[%clk 0:03:00.4]} 3. Nd2 {[%clk 0:02:52]} 3... dxe4 {[%clk 0:03:00.5]}
4. Nxe4 {[%clk 0:02:51.8]} 4... Bd7 {[%clk 0:03:01.2]} 5. Nf3 {[%clk 0:02:51.6]}
5... Bc6 {[%clk 0:03:01.6]} 6. Bd3 {[%clk 0:02:52.2]} 6... Nd7 {[%clk
0:03:02.2]} 7. O-O {[%clk 0:02:51.5]} 7... Ngf6 {[%clk 0:03:02.7]} 8. Ned2
{[%clk 0:02:51.7]} 8... Be7 {[%clk 0:03:02.7]} 9. b3 {[%clk 0:02:51.2]} 9... O-O
{[%clk 0:03:02]} 10. c4 {[%clk 0:02:50.9]} 10... b6 {[%clk 0:03:01.6]} 11. Bb2
{[%clk 0:02:49.7]} 11... Bb7 {[%clk 0:03:02]} 12. Qe2 {[%clk 0:02:47.9]} 12...
c5 {[%clk 0:03:02.4]} 13. Rad1 {[%clk 0:02:34.5]} 13... Re8 {[%clk 0:03:01.9]}
14. dxc5 {[%clk 0:02:28.3]} 14... bxc5 {[%clk 0:03:00.7]} 15. Ne4 {[%clk
0:02:20.5]} 15... Qc7 {[%clk 0:02:59.4]} 16. Rfe1 {[%clk 0:01:45.8]} 16... Rad8
{[%clk 0:02:57.3]} 17. Nc3 {[%clk 0:01:17]} 17... a6 {[%clk 0:02:52.8]} 18. Bc2
{[%clk 0:01:16.5]} 18... h6 {[%clk 0:02:49.9]} 19. h3 {[%clk 0:01:14.4]} 19...
Qf4 {[%clk 0:02:21]} 20. Ne4 {[%clk 0:01:10.8]} 20... Nxe4 {[%clk 0:02:02.8]}
21. Bxe4 {[%clk 0:01:10]} 21... Bxe4 {[%clk 0:01:54.4]} 22. Qxe4 {[%clk
0:01:10.9]} 22... Qxe4 {[%clk 0:01:52.2]} 23. Rxe4 {[%clk 0:01:11.8]} 23... Nb8
{[%clk 0:01:26.8]} 24. Ree1 {[%clk 0:01:05]} 24... Nc6 {[%clk 0:01:26.5]} 25.
Ne5 {[%clk 0:01:05.1]} 25... Nxe5 {[%clk 0:01:18.4]} 26. Bxe5 {[%clk 0:01:04.7]}
26... f6 {[%clk 0:01:16.7]} 27. Bc7 {[%clk 0:01:04.5]} 27... Rxd1 {[%clk
0:01:09.4]} 28. Rxd1 {[%clk 0:01:03.9]} 28... Rc8 {[%clk 0:01:08.6]} 29. Rd7
{[%clk 0:01:01.5]} 29... Kf8 {[%clk 0:01:06.1]} 30. Ba5 {[%clk 0:01:01.3]} 30...
Rc6 {[%clk 0:01:05]} 31. Kf1 {[%clk 0:00:58.5]} 31... e5 {[%clk 0:01:03.1]} 32.
g4 {[%clk 0:00:55.1]} 32... Rd6 {[%clk 0:00:54.9]} 33. Rxd6 {[%clk 0:00:49.1]}
33... Bxd6 {[%clk 0:00:55.8]} 34. Ke2 {[%clk 0:00:49.4]} 34... g6 {[%clk
0:00:54.9]} 35. Bd2 {[%clk 0:00:40]} 35... h5 {[%clk 0:00:53.6]} 36. a3 {[%clk
0:00:29.2]} 36... f5 {[%clk 0:00:49.5]} 37. f3 {[%clk 0:00:25.5]} 37... Ke7
{[%clk 0:00:48.7]} 38. gxh5 {[%clk 0:00:21.1]} 38... gxh5 {[%clk 0:00:48.5]} 39.
Kd3 {[%clk 0:00:21.1]} 39... Kd7 {[%clk 0:00:45.9]} 40. b4 {[%clk 0:00:16.8]}
40... Kc6 {[%clk 0:00:46.1]} 41. Be1 {[%clk 0:00:16.4]} 41... Be7 {[%clk
0:00:42.3]} 42. Bc3 {[%clk 0:00:15.5]} 42... Bd6 {[%clk 0:00:38.2]} 43. Be1
{[%clk 0:00:15.2]} 43... Bc7 {[%clk 0:00:30.6]} 44. Bc3 {[%clk 0:00:14.2]} 44...
Kb6 {[%clk 0:00:28.8]} 45. Be1 {[%clk 0:00:13.6]} 45... Kb7 {[%clk 0:00:28.2]}
46. Bc3 {[%clk 0:00:12.2]} 46... Kc6 {[%clk 0:00:26.7]} 47. Bd2 {[%clk 0:00:12]}
47... a5 {[%clk 0:00:23.8]} 48. b5+ {[%clk 0:00:09.6]} 48... Kd6 {[%clk
0:00:21.3]} 49. a4 {[%clk 0:00:09.8]} 49... Bb6 {[%clk 0:00:20.9]} 50. Be1
{[%clk 0:00:08.8]} 50... Ke6 {[%clk 0:00:21.1]} 51. Bd2 {[%clk 0:00:08]} 51...
Kf6 {[%clk 0:00:21.6]} 52. Bc1 {[%clk 0:00:06.2]} 52... Bc7 {[%clk 0:00:20.3]}
53. Bd2 {[%clk 0:00:06.6]} 53... Ke6 {[%clk 0:00:17.7]} 54. Bc1 {[%clk
0:00:06.7]} 54... Bb6 {[%clk 0:00:16.5]} 55. Be3 {[%clk 0:00:07.2]} 55... Kf6
{[%clk 0:00:16.6]} 56. Bd2 {[%clk 0:00:07.2]} 56... Kg6 {[%clk 0:00:16.1]} 57.
Be3 {[%clk 0:00:07.6]} 57... Kf7 {[%clk 0:00:15.5]} 58. Bd2 {[%clk 0:00:07.5]}
58... Ke6 {[%clk 0:00:16]} 59. Bc1 {[%clk 0:00:08]} 59... Bc7 {[%clk 0:00:16.3]}
60. Bd2 {[%clk 0:00:08.4]} 60... Bb6 {[%clk 0:00:16.4]} 61. Bc1 {[%clk
0:00:08.7]} 61... Kf6 {[%clk 0:00:16.7]} 62. Bd2 {[%clk 0:00:09.2]} 62... Ke6
{[%clk 0:00:14.9]} 1/2-1/2

[Event "Late-Titled-Tuesday-Blitz-March-19-2024"]
[Site "Chess.com"]
[Date "2024.03.19"]
[Round "9"]
[White "Oleksandr_Bortnyk"]
[Black "DanielNaroditsky"]
[Result "1-0"]
[WhiteElo "3093"]
[BlackElo "3168"]
[TimeControl "180+1"]
[EndTime "15:44:14 PDT"]
[Termination "Oleksandr_Bortnyk won by checkmate"]

1. e4 {[%clk 0:02:57.1]} 1... c5 {[%clk 0:02:52]} 2. Nf3 {[%clk 0:02:41.7]} 2...
d6 {[%clk 0:02:48.7]} 3. Bc4 {[%clk 0:02:37.7]} 3... Nf6 {[%clk 0:02:48.2]} 4.
d3 {[%clk 0:02:37]} 4... Nc6 {[%clk 0:02:47.5]} 5. h3 {[%clk 0:02:34.3]} 5... e6
{[%clk 0:02:40.9]} 6. O-O {[%clk 0:02:31.9]} 6... Be7 {[%clk 0:02:41.4]} 7. c3
{[%clk 0:02:27.9]} 7... d5 {[%clk 0:02:39.7]} 8. exd5 {[%clk 0:02:22.8]} 8...
exd5 {[%clk 0:02:40.6]} 9. Bb3 {[%clk 0:02:22.5]} 9... O-O {[%clk 0:02:37]} 10.
d4 {[%clk 0:02:14.4]} 10... cxd4 {[%clk 0:02:32.8]} 11. Nxd4 {[%clk 0:02:15.3]}
11... Nxd4 {[%clk 0:02:30.6]} 12. Qxd4 {[%clk 0:02:16.2]} 12... Be6 {[%clk
0:02:19]} 13. Bf4 {[%clk 0:01:56.9]} 13... Rc8 {[%clk 0:02:06.3]} 14. Nd2 {[%clk
0:01:55.9]} 14... Bc5 {[%clk 0:02:00.3]} 15. Qd3 {[%clk 0:01:53.7]} 15... h6
{[%clk 0:01:55.3]} 16. Rae1 {[%clk 0:01:46]} 16... Re8 {[%clk 0:01:52.3]} 17.
Bc2 {[%clk 0:01:25.4]} 17... Bf8 {[%clk 0:01:17.5]} 18. Nf3 {[%clk 0:00:59.8]}
18... d4 {[%clk 0:00:27.7]} 19. Qxd4 {[%clk 0:00:41.5]} 19... Qa5 {[%clk
0:00:28.3]} 20. Be5 {[%clk 0:00:24.3]} 20... Nd7 {[%clk 0:00:15.5]} 21. Bg3
{[%clk 0:00:20.3]} 21... Nf6 {[%clk 0:00:08.6]} 22. a3 {[%clk 0:00:13.3]} 22...
Red8 {[%clk 0:00:05.3]} 23. Qh4 {[%clk 0:00:11.1]} 23... Bc4 {[%clk 0:00:05.7]}
24. Re5 {[%clk 0:00:08.3]} 24... Qb6 {[%clk 0:00:06.3]} 25. Rfe1 {[%clk
0:00:07.2]} 25... Qxb2 {[%clk 0:00:06.1]} 26. Bf5 {[%clk 0:00:07.9]} 26... Ra8
{[%clk 0:00:04.2]} 27. Qxc4 {[%clk 0:00:04.2]} 27... Qxa3 {[%clk 0:00:01.7]} 28.
Bh4 {[%clk 0:00:02.5]} 28... Rd6 {[%clk 0:00:01.6]} 29. Bxf6 {[%clk 0:00:01.5]}
29... Rxf6 {[%clk 0:00:02.5]} 30. Bb1 {[%clk 0:00:01.7]} 30... a6 {[%clk
0:00:01.8]} 31. Qe4 {[%clk 0:00:01.3]} 31... g6 {[%clk 0:00:02.1]} 32. Qxb7
{[%clk 0:00:01.9]} 32... Rd8 {[%clk 0:00:02.4]} 33. Qe4 {[%clk 0:00:02.4]} 33...
Qxc3 {[%clk 0:00:02.4]} 34. Re8 {[%clk 0:00:02.2]} 34... Rxe8 {[%clk 0:00:02.7]}
35. Qxe8 {[%clk 0:00:03.1]} 35... Kg7 {[%clk 0:00:02.9]} 36. Qe5 {[%clk
0:00:03.4]} 36... Qc6 {[%clk 0:00:02.2]} 37. Nd4 {[%clk 0:00:03.5]} 37... Qb6
{[%clk 0:00:02.9]} 38. Nf3 {[%clk 0:00:02.4]} 38... Bc5 {[%clk 0:00:03.2]} 39.
Rf1 {[%clk 0:00:02.3]} 39... Bd6 {[%clk 0:00:03.1]} 40. Qc3 {[%clk 0:00:02.4]}
40... Bb4 {[%clk 0:00:03.4]} 41. Qa1 {[%clk 0:00:02.7]} 41... Qc5 {[%clk
0:00:03.6]} 42. Qe5 {[%clk 0:00:02.6]} 42... Qb6 {[%clk 0:00:02.6]} 43. Ba2
{[%clk 0:00:03]} 43... Bd6 {[%clk 0:00:02.2]} 44. Qc3 {[%clk 0:00:03.3]} 44...
a5 {[%clk 0:00:02.2]} 45. Bc4 {[%clk 0:00:02.1]} 45... Qc5 {[%clk 0:00:02.3]}
46. Nd2 {[%clk 0:00:02.2]} 46... Be5 {[%clk 0:00:02.4]} 47. Qe3 {[%clk
0:00:01.7]} 47... Bd4 {[%clk 0:00:02.3]} 48. Qd3 {[%clk 0:00:02.3]} 48... Qe5
{[%clk 0:00:01.9]} 49. Nf3 {[%clk 0:00:02.5]} 49... Rxf3 {[%clk 0:00:01.8]} 50.
Qxf3 {[%clk 0:00:03.4]} 50... Qc7 {[%clk 0:00:01.5]} 51. Bd5 {[%clk 0:00:03.3]}
51... a4 {[%clk 0:00:01.7]} 52. Rd1 {[%clk 0:00:03.4]} 52... Bb2 {[%clk
0:00:02]} 53. g3 {[%clk 0:00:03.6]} 53... a3 {[%clk 0:00:02.5]} 54. Ba2 {[%clk
0:00:04]} 54... Qe7 {[%clk 0:00:02.3]} 55. Kg2 {[%clk 0:00:04.2]} 55... h5
{[%clk 0:00:03.1]} 56. h4 {[%clk 0:00:04.5]} 56... Bf6 {[%clk 0:00:03.8]} 57.
Qd5 {[%clk 0:00:04.6]} 57... Bb2 {[%clk 0:00:02.9]} 58. Rd3 {[%clk 0:00:04.8]}
58... Kh6 {[%clk 0:00:02.5]} 59. Qxf7 {[%clk 0:00:04.1]} 59... Qxf7 {[%clk
0:00:03.2]} 60. Bxf7 {[%clk 0:00:03.9]} 60... g5 {[%clk 0:00:04.1]} 61. hxg5+
{[%clk 0:00:04.2]} 61... Kxg5 {[%clk 0:00:05]} 62. Ba2 {[%clk 0:00:03.8]} 62...
h4 {[%clk 0:00:05.5]} 63. Rd5+ {[%clk 0:00:03.9]} 63... Kg4 {[%clk 0:00:06.3]}
64. f3# {[%clk 0:00:04.5]} 1-0

[Event "Late-Titled-Tuesday-Blitz-March-19-2024"]
[Site "Chess.com"]
[Date "2024.03.19"]
[Round "9"]
[White "RantomOpening"]
[Black "JoakimVonAnd"]
[Result "1-0"]
[WhiteElo "2616"]
[BlackElo "2704"]
[TimeControl "180+1"]
[EndTime "15:44:19 PDT"]
[Termination "RantomOpening won by checkmate"]

1. c4 {[%clk 0:02:58.9]} 1... c6 {[%clk 0:02:57.3]} 2. Nf3 {[%clk 0:02:58.7]}
2... d5 {[%clk 0:02:58.2]} 3. e3 {[%clk 0:02:59]} 3... Nf6 {[%clk 0:02:57.9]} 4.
Nc3 {[%clk 0:02:59.5]} 4... Bf5 {[%clk 0:02:58.1]} 5. Qb3 {[%clk 0:02:58.3]}
5... Qb6 {[%clk 0:02:56.9]} 6. cxd5 {[%clk 0:02:57.7]} 6... Qxb3 {[%clk
0:02:55.1]} 7. axb3 {[%clk 0:02:58.6]} 7... Nxd5 {[%clk 0:02:55.5]} 8. Nxd5
{[%clk 0:02:58.5]} 8... cxd5 {[%clk 0:02:55.8]} 9. Nd4 {[%clk 0:02:59.4]} 9...
Bd7 {[%clk 0:02:54.9]} 10. Nb5 {[%clk 0:02:59.3]} 10... Bxb5 {[%clk 0:02:52.3]}
11. Bxb5+ {[%clk 0:03:00.2]} 11... Nd7 {[%clk 0:02:49.7]} 12. d4 {[%clk
0:02:57]} 12... e6 {[%clk 0:02:49.4]} 13. Bd2 {[%clk 0:02:56.5]} 13... Bd6
{[%clk 0:02:47.7]} 14. f4 {[%clk 0:02:55.9]} 14... Ke7 {[%clk 0:02:46.3]} 15.
Ke2 {[%clk 0:02:54.4]} 15... a6 {[%clk 0:02:45.2]} 16. Bd3 {[%clk 0:02:54]}
16... f5 {[%clk 0:02:39.8]} 17. h3 {[%clk 0:02:52.5]} 17... h5 {[%clk
0:02:36.2]} 18. Rag1 {[%clk 0:02:45.4]} 18... h4 {[%clk 0:02:32]} 19. g4 {[%clk
0:02:45.4]} 19... hxg3 {[%clk 0:02:29.6]} 20. Rxg3 {[%clk 0:02:45.6]} 20... Kf7
{[%clk 0:02:27.1]} 21. Rhg1 {[%clk 0:02:45.2]} 21... Rh7 {[%clk 0:02:26.9]} 22.
Kf2 {[%clk 0:02:39]} 22... Rah8 {[%clk 0:02:26.4]} 23. Bf1 {[%clk 0:02:31.4]}
23... Nf6 {[%clk 0:02:25.1]} 24. Bg2 {[%clk 0:02:29.4]} 24... Rc8 {[%clk
0:02:12.7]} 25. Bc3 {[%clk 0:02:20.1]} 25... b5 {[%clk 0:02:01.6]} 26. b4 {[%clk
0:02:19.4]} 26... a5 {[%clk 0:01:44.2]} 27. bxa5 {[%clk 0:02:20.3]} 27... b4
{[%clk 0:01:44.4]} 28. Bd2 {[%clk 0:02:17.3]} 28... Rc2 {[%clk 0:01:44.2]} 29.
Ke2 {[%clk 0:02:17.2]} 29... Rxb2 {[%clk 0:01:43.3]} 30. Ra1 {[%clk 0:02:14.2]}
30... b3 {[%clk 0:01:40.1]} 31. Kd1 {[%clk 0:02:13.7]} 31... Ra2 {[%clk
0:01:39.9]} 32. Rb1 {[%clk 0:02:07.9]} 32... b2 {[%clk 0:01:16.3]} 33. Kc2
{[%clk 0:02:07.2]} 33... Ba3 {[%clk 0:01:16.4]} 34. Bf3 {[%clk 0:01:55.1]} 34...
Rh8 {[%clk 0:01:16]} 35. Rgg1 {[%clk 0:01:50]} 35... Rxh3 {[%clk 0:01:15.1]} 36.
Kb3 {[%clk 0:01:45.5]} 36... Ra1 {[%clk 0:01:01.7]} 37. Rxa1 {[%clk 0:01:38.7]}
37... bxa1=Q {[%clk 0:01:02.6]} 38. Rxa1 {[%clk 0:01:39.2]} 38... Bd6 {[%clk
0:01:02.7]} 39. a6 {[%clk 0:01:38.3]} 39... Bb8 {[%clk 0:01:02.5]} 40. a7 {[%clk
0:01:38.4]} 40... Bxa7 {[%clk 0:00:58.8]} 41. Rxa7+ {[%clk 0:01:39.3]} 41... Kg6
{[%clk 0:00:55]} 42. Bd1 {[%clk 0:01:35.3]} 42... Ne4 {[%clk 0:00:43.1]} 43. Bc1
{[%clk 0:01:31.9]} 43... Nf2 {[%clk 0:00:43.4]} 44. Bc2 {[%clk 0:01:28.6]} 44...
Ng4 {[%clk 0:00:43]} 45. Ra3 {[%clk 0:01:17.5]} 45... Nxe3 {[%clk 0:00:35.7]}
46. Ka4 {[%clk 0:00:41.8]} 46... Rh2 {[%clk 0:00:33.7]} 47. Rxe3 {[%clk
0:00:39.7]} 47... Rxc2 {[%clk 0:00:33.7]} 48. Rxe6+ {[%clk 0:00:40.1]} 48... Kf7
{[%clk 0:00:30.9]} 49. Re1 {[%clk 0:00:37.8]} 49... Rc4+ {[%clk 0:00:30.2]} 50.
Kb5 {[%clk 0:00:36.8]} 50... Rxd4 {[%clk 0:00:30.8]} 51. Kc5 {[%clk 0:00:37.3]}
51... Rd3 {[%clk 0:00:30.6]} 52. Kd6 {[%clk 0:00:34.4]} 52... Rd4 {[%clk
0:00:21.1]} 53. Ke5 {[%clk 0:00:27]} 53... Re4+ {[%clk 0:00:20.8]} 54. Rxe4
{[%clk 0:00:27.2]} 54... fxe4 {[%clk 0:00:05.4]} 55. Kxd5 {[%clk 0:00:26.7]}
55... e3 {[%clk 0:00:06.3]} 56. Bxe3 {[%clk 0:00:26.6]} 56... Kg6 {[%clk
0:00:07.2]} 57. Ke4 {[%clk 0:00:26.6]} 57... Kh5 {[%clk 0:00:07.8]} 58. f5
{[%clk 0:00:26.4]} 58... Kg4 {[%clk 0:00:05.7]} 59. Ke5 {[%clk 0:00:26]} 59...
Kh5 {[%clk 0:00:06.3]} 60. Ke6 {[%clk 0:00:25.9]} 60... Kg4 {[%clk 0:00:06.7]}
61. Bd4 {[%clk 0:00:23.3]} 61... Kg5 {[%clk 0:00:07.1]} 62. Bxg7 {[%clk
0:00:23.4]} 62... Kf4 {[%clk 0:00:07.9]} 63. f6 {[%clk 0:00:23.8]} 63... Kg5
{[%clk 0:00:08.8]} 64. f7 {[%clk 0:00:24.5]} 64... Kg6 {[%clk 0:00:08.7]} 65.
f8=Q {[%clk 0:00:24.8]} 65... Kg5 {[%clk 0:00:09.6]} 66. Qf5+ {[%clk 0:00:24.8]}
66... Kh4 {[%clk 0:00:09.7]} 67. Qg6 {[%clk 0:00:25]} 67... Kh3 {[%clk
0:00:09.8]} 68. Be5 {[%clk 0:00:24.7]} 68... Kh4 {[%clk 0:00:10.4]} 69. Bf4
{[%clk 0:00:23.9]} 69... Kh3 {[%clk 0:00:11.3]} 70. Qg3# {[%clk 0:00:24.7]} 1-0

[Event "Late-Titled-Tuesday-Blitz-March-19-2024"]
[Site "Chess.com"]
[Date "2024.03.19"]
[Round "9"]
[White "Byniolus"]
[Black "Durarbayli"]
[Result "0-1"]
[WhiteElo "2783"]
[BlackElo "2959"]
[TimeControl "180+1"]
[EndTime "15:44:28 PDT"]
[Termination "Durarbayli won on time"]

1. d4 {[%clk 0:03:00.9]} 1... Nf6 {[%clk 0:03:00.2]} 2. Nf3 {[%clk 0:03:01.2]}
2... b6 {[%clk 0:03:00.1]} 3. Bf4 {[%clk 0:03:01.3]} 3... Bb7 {[%clk 0:02:59.3]}
4. e3 {[%clk 0:03:01.9]} 4... Nh5 {[%clk 0:02:59.5]} 5. Bg5 {[%clk 0:03:02]}
5... h6 {[%clk 0:02:59.7]} 6. Bh4 {[%clk 0:03:02.7]} 6... g5 {[%clk 0:03:00.2]}
7. Nfd2 {[%clk 0:03:02.6]} 7... gxh4 {[%clk 0:02:49.7]} 8. Qxh5 {[%clk
0:03:02.2]} 8... e6 {[%clk 0:02:50.3]} 9. Nc3 {[%clk 0:02:54.3]} 9... Qg5 {[%clk
0:02:48.7]} 10. Qe2 {[%clk 0:02:49.4]} 10... h3 {[%clk 0:02:33.4]} 11. f3 {[%clk
0:02:49.3]} 11... hxg2 {[%clk 0:02:32.7]} 12. Bxg2 {[%clk 0:02:48.3]} 12... Rg8
{[%clk 0:02:31.5]} 13. Bf1 {[%clk 0:02:25.5]} 13... Bb4 {[%clk 0:02:15.7]} 14.
O-O-O {[%clk 0:02:06.2]} 14... Bxc3 {[%clk 0:02:05.2]} 15. bxc3 {[%clk
0:02:07.1]} 15... Nc6 {[%clk 0:01:58.6]} 16. Kb2 {[%clk 0:01:46]} 16... O-O-O
{[%clk 0:01:56]} 17. Nb3 {[%clk 0:01:35.3]} 17... Ne7 {[%clk 0:01:41.1]} 18. e4
{[%clk 0:01:34.9]} 18... Ng6 {[%clk 0:01:39.5]} 19. c4 {[%clk 0:01:28]} 19... f5
{[%clk 0:01:35.1]} 20. d5 {[%clk 0:01:18.6]} 20... Nf4 {[%clk 0:01:23.7]} 21.
Qe3 {[%clk 0:01:12.3]} 21... fxe4 {[%clk 0:01:23.7]} 22. fxe4 {[%clk 0:01:11.5]}
22... Qe5+ {[%clk 0:01:15.7]} 23. Qd4 {[%clk 0:01:06.7]} 23... Qxd4+ {[%clk
0:01:11.7]} 24. Nxd4 {[%clk 0:01:07.6]} 24... c5 {[%clk 0:00:47.1]} 25. Nb5
{[%clk 0:00:56.7]} 25... a6 {[%clk 0:00:44.6]} 26. Nd6+ {[%clk 0:00:28.7]} 26...
Kc7 {[%clk 0:00:44.5]} 27. Nxb7 {[%clk 0:00:25.4]} 27... Kxb7 {[%clk 0:00:45.4]}
28. Bd3 {[%clk 0:00:22]} 28... e5 {[%clk 0:00:38.7]} 29. Rhg1 {[%clk 0:00:19.3]}
29... Nh3 {[%clk 0:00:26.1]} 30. Rg3 {[%clk 0:00:15.3]} 30... Rxg3 {[%clk
0:00:22.1]} 31. hxg3 {[%clk 0:00:16.2]} 31... Rg8 {[%clk 0:00:22.2]} 32. Rf1
{[%clk 0:00:16.8]} 32... Rxg3 {[%clk 0:00:19]} 33. Rf7 {[%clk 0:00:13.8]} 33...
Kc7 {[%clk 0:00:19.1]} 34. Rh7 {[%clk 0:00:11.3]} 34... Rg6 {[%clk 0:00:17.2]}
35. Be2 {[%clk 0:00:08.1]} 35... Nf4 {[%clk 0:00:15.4]} 36. Bf3 {[%clk
0:00:06.5]} 36... Rf6 {[%clk 0:00:14.1]} 37. Bg4 {[%clk 0:00:06]} 37... Rd6
{[%clk 0:00:14.2]} 38. Bf5 {[%clk 0:00:03.3]} 38... b5 {[%clk 0:00:10.2]} 39.
cxb5 {[%clk 0:00:02.7]} 39... axb5 {[%clk 0:00:11.1]} 40. a3 {[%clk 0:00:01.6]}
40... Ne2 {[%clk 0:00:11.4]} 41. Bg4 {[%clk 0:00:01.7]} 41... Ng3 {[%clk
0:00:09.7]} 42. Bf3 {[%clk 0:00:01.3]} 42... Rf6 {[%clk 0:00:09.7]} 43. Bg2
{[%clk 0:00:01.8]} 43... c4 {[%clk 0:00:07.4]} 44. Kc3 {[%clk 0:00:01.8]} 44...
Ra6 {[%clk 0:00:05.6]} 45. Kb4 {[%clk 0:00:02.1]} 45... Kb6 {[%clk 0:00:06.2]}
46. Rxd7 {[%clk 0:00:01.4]} 46... Ra4+ {[%clk 0:00:06.4]} 47. Kc3 {[%clk
0:00:01.8]} 47... Rxa3+ {[%clk 0:00:06.9]} 48. Kb2 {[%clk 0:00:02.4]} 48... Re3
{[%clk 0:00:07]} 49. Rd6+ {[%clk 0:00:03.1]} 49... Kc5 {[%clk 0:00:07.3]} 50.
Rxh6 {[%clk 0:00:03.2]} 50... Nxe4 {[%clk 0:00:05.8]} 51. Bxe4 {[%clk
0:00:02.2]} 51... Rxe4 {[%clk 0:00:06.7]} 52. d6 {[%clk 0:00:02.9]} 52... Rd4
{[%clk 0:00:07]} 53. Rh5 {[%clk 0:00:03.1]} 53... Kxd6 {[%clk 0:00:07.5]} 54.
Rh6+ {[%clk 0:00:03.2]} 54... Kc5 {[%clk 0:00:07.6]} 55. Rh8 {[%clk 0:00:04.1]}
55... b4 {[%clk 0:00:06.9]} 56. Rc8+ {[%clk 0:00:04.3]} 56... Kd5 {[%clk
0:00:07.5]} 57. Rb8 {[%clk 0:00:05.2]} 57... Kc5 {[%clk 0:00:06.4]} 58. Rc8+
{[%clk 0:00:05.5]} 58... Kd6 {[%clk 0:00:04.8]} 59. Rb8 {[%clk 0:00:06.4]} 59...
c3+ {[%clk 0:00:03.7]} 60. Kb3 {[%clk 0:00:07.3]} 60... Kc5 {[%clk 0:00:04]} 61.
Re8 {[%clk 0:00:06.5]} 61... Kd5 {[%clk 0:00:04.2]} 62. Rh8 {[%clk 0:00:05.4]}
62... Ke4 {[%clk 0:00:04.3]} 63. Rh3 {[%clk 0:00:04.8]} 63... Kf4 {[%clk
0:00:04.4]} 64. Rh1 {[%clk 0:00:01.9]} 64... e4 {[%clk 0:00:04.5]} 0-1